{"text_format":"1","workbook":"xlsx","n_sheets":15,"sheets":["2011 | Autochtone - Tx","2011 |TxEmplois","2012 | Autochtone - Tx","2012 |TxEmplois","2013 | Autochtone - Tx","2013 |TxEmplois","2014 | Autochtone - Tx","2014 |TxEmplois","2015 | Autochtone - Tx","2015 |TxEmplois","2016 | Autochtone - Tx","2016 |TxEmplois","2017 | Autochtone - Tx","2017 |TxEmplois","Macro1"],"not_rendered":{"charts":0,"images":0,"macros":1,"external_links":0,"defined_names":15,"comments":0,"pivot_tables":0},"unopened":[],"bounds":{"document_bytes":16777216,"sheet_cells":100000,"rows_first":2000,"rows_last":500,"rows_between":2000,"halvings":0,"cell_chars":16384,"cell_head_chars":4096},"cells_cut":0,"cells_raw":0,"read":"whole","date_system":"1900"}

{"sheet":"2011 | Autochtone - Tx","index":0,"n_rows":13,"n_cols":9,"rows_kept":13,"cut":false,"hidden":false,"merged":[[0,0,0,8],[12,0,12,8]]}
["TAUX DE REPRÉSENTATIVITÉ DES MEMBRES DES GROUPES CIBLES AU SEIN DE L'EFFECTIF RÉGULIER \nGroupe cible: AUTOCHTONE \nEn date du : '2011-04-01' \nDate d'exécution du rapport: 2018-06-18 09:16:44"]
[]
[]
[null,"Civils",null,null,null,"Policiers"]
[null,"NOMBRE D’EMPLOYÉS RÉGULIERS",null,"TAUX PAR RAPPORT À L’EFFECTIF RÉGULIER TOTAL (%)",null,"NOMBRE D’EMPLOYÉS RÉGULIERS",null,"TAUX PAR RAPPORT À L’EFFECTIF RÉGULIER TOTAL (%)"]
[null,"Femme","Homme","Femme","Homme","Femme","Homme","Femme","Homme"]
["Autochtone"]
["Non",391,116,0.9559902200489,0.88549618320610701,751,2871,0.66460176991150399,0.65398633257403205]
["Oui",2,1,4.8899755501222502E-3,7.6335877862595408E-3,10,56,8.8495575221238902E-3,1.27562642369021E-2]
["N.A.",16,14,3.9119804400978002E-2,0.106870229007634,369,1463,0.32654867256637199,0.33325740318906599]
["Total Sûreté",409,131,1,1,1130,4390,1,1]
[]
["Note 1: L’effectif en place considère tout employé ayant un lien d’emploi et dont le statut d’affectation peut être l’un des suivants : actif, préretraite, congé de maternité, congé sans salaire, congé avec salaire, assurance-salaire, accident de travail ou retrait préventif. \nNote 2: La catégorie d’emploi est celle reliée au poste occupé par l’employé. Les prêts ne sont pas considérés.  Note 3: Le corps d'emploi supérieur 825, soit le grade de Directeur général est considéré dans la catégorie \"Policiers\".   N.B. Les informations relevant du PAÉE sont demandées aux employés sur une base volontaire.   ***L’intégrité des données est tributaire des informations qui sont alimentées dans nos systèmes RH.***"]

{"sheet":"2011 |TxEmplois","index":1,"n_rows":14,"n_cols":26,"rows_kept":14,"cut":false,"hidden":false,"merged":[[13,0,13,25],[0,0,0,25]]}
["TAUX DE REPRÉSENTATIVITÉ DES MEMBRES DES GROUPES CIBLES AU SEIN DE L'EFFECTIF RÉGULIER PAR CATÉGORIE D'EMPLOIS \nGroupe cible: AUTOCHTONE \nEn date du : '2011-04-01' \nDate d'exécution du rapport: 2018-06-18 09:40:28"]
[]
[]
[null,"Type effectif","Civils",null,null,null,null,null,null,null,null,null,null,null,"Policiers"]
[null,"Catégorie d'emplois","1. PERSONNEL D'ENCADREMENT",null,null,null,"2. PERSONNEL PROFESSIONNEL",null,null,null,"3. PERSONNEL TECHNIQUE ET DE BUREAU",null,null,null,"1. OFFICIER",null,null,null,"2. SOUS-OFFICIER",null,null,null,"3. AGENT"]
[null,null,"NOMBRE D’EMPLOYÉS RÉGULIERS",null," (%)*",null,"NOMBRE D’EMPLOYÉS RÉGULIERS",null," (%)*",null,"NOMBRE D’EMPLOYÉS RÉGULIERS",null," (%)*",null,"NOMBRE D’EMPLOYÉS RÉGULIERS",null," (%)*",null,"NOMBRE D’EMPLOYÉS RÉGULIERS",null," (%)*",null,"NOMBRE D’EMPLOYÉS RÉGULIERS",null," (%)*"]
[null,"Sexe","Femme","Homme","Femme","Homme","Femme","Homme","Femme","Homme","Femme","Homme","Femme","Homme","Femme","Homme","Femme","Homme","Femme","Homme","Femme","Homme","Femme","Homme","Femme","Homme"]
["Autochtone"]
["Non",null,7,6,0.875,0.75,45,35,0.97826086956521696,0.97222222222222199,339,75,0.95492957746478901,0.86206896551724099,16,257,0.88888888888888906,0.7406340057636891,192,1105,0.752941176470588,0.72175048987589796,543,1509,0.63360560093348905,0.60071656050955402]
["Oui",null,"N.A.","N.A.","N.A.","N.A.","N.A.","N.A.","N.A.","N.A.",2,1,5.6338028169014105E-3,1.1494252873563201E-2,"N.A.",3,"N.A.",8.6455331412103702E-3,4,18,1.5686274509803897E-2,1.1757021554539501E-2,6,35,7.0011668611435207E-3,1.3933121019108301E-2]
["N.A.",null,1,2,0.125,0.25,1,1,2.1739130434782598E-2,2.7777777777777801E-2,14,11,3.9436619718309904E-2,0.126436781609195,2,87,0.11111111111111101,0.25072046109510099,59,408,0.23137254901960802,0.26649248856956204,308,968,0.35939323220536801,0.38535031847133805]
["Total Sûreté",null,8,8,1,1,46,36,1,1,355,87,1,1,18,347,1,1,255,1531,1,1,857,2512,1,1]
[]
["* TAUX PAR RAPPORT À L’EFFECTIF RÉGULIER TOTAL DANS LA CATÉGORIE D'EMPLOI.  \nNote 1: L’effectif en place considère tout employé ayant un lien d’emploi et dont le statut d’affectation peut être l’un des suivants : actif, préretraite, congé de maternité, congé sans salaire, congé avec salaire, assurance-salaire, accident de travail ou retrait préventif.  Note 2: La catégorie d’emploi est celle reliée au poste occupé par l’employé. Les prêts ne sont pas considérés.  Note 3: La catégorie d’emploi « Officier » comprend les catégories d’emploi suivantes : directeur général, directeur général adjoint, inspecteur-chef, inspecteur, capitaine et lieutenant.  N.B. Les informations relevant du PAÉE sont demandées aux employés sur une base volontaire.   ***L’intégrité des données est tributaire des informations qui sont alimentées dans nos systèmes RH.*** "]

{"sheet":"2012 | Autochtone - Tx","index":2,"n_rows":13,"n_cols":9,"rows_kept":13,"cut":false,"hidden":false,"merged":[[12,0,12,8],[0,0,0,8]]}
["TAUX DE REPRÉSENTATIVITÉ DES MEMBRES DES GROUPES CIBLES AU SEIN DE L'EFFECTIF RÉGULIER \nGroupe cible: AUTOCHTONE \nEn date du : '2012-04-01' \nDate d'exécution du rapport: 2018-06-18 09:15:29"]
[]
[]
[null,"Civils",null,null,null,"Policiers"]
[null,"NOMBRE D’EMPLOYÉS RÉGULIERS",null,"TAUX PAR RAPPORT À L’EFFECTIF RÉGULIER TOTAL (%)",null,"NOMBRE D’EMPLOYÉS RÉGULIERS",null,"TAUX PAR RAPPORT À L’EFFECTIF RÉGULIER TOTAL (%)"]
[null,"Femme","Homme","Femme","Homme","Femme","Homme","Femme","Homme"]
["Autochtone"]
["Non",569,194,0.95630252100840296,0.91509433962264208,802,3000,0.68371696504688806,0.67628494138863804]
["Oui",4,1,6.7226890756302508E-3,4.7169811320754698E-3,11,55,9.377664109121912E-3,1.2398557258791699E-2]
["N.A.",22,17,3.6974789915966394E-2,8.0188679245283001E-2,360,1381,0.30690537084399,0.31131650135257]
["Total Sûreté",595,212,1,1,1173,4436,1,1]
[]
["Note 1: L’effectif en place considère tout employé ayant un lien d’emploi et dont le statut d’affectation peut être l’un des suivants : actif, préretraite, congé de maternité, congé sans salaire, congé avec salaire, assurance-salaire, accident de travail ou retrait préventif.  Note 2: La catégorie d’emploi est celle reliée au poste occupé par l’employé. Les prêts ne sont pas considérés.  Note 3: Le corps d'emploi supérieur 825, soit le grade de Directeur général est considéré dans la catégorie \"Policiers\".   N.B. Les informations relevant du PAÉE sont demandées aux employés sur une base volontaire.   ***L’intégrité des données est tributaire des informations qui sont alimentées dans nos systèmes RH.***"]

{"sheet":"2012 |TxEmplois","index":3,"n_rows":14,"n_cols":26,"rows_kept":14,"cut":false,"hidden":false,"merged":[[13,0,13,25],[0,0,0,25]]}
["TAUX DE REPRÉSENTATIVITÉ DES MEMBRES DES GROUPES CIBLES AU SEIN DE L'EFFECTIF RÉGULIER PAR CATÉGORIE D'EMPLOIS \nGroupe cible: AUTOCHTONE \nEn date du : '2012-04-01' \nDate d'exécution du rapport: 2018-06-18 09:38:42"]
[]
[]
[null,"Type effectif","Civils",null,null,null,null,null,null,null,null,null,null,null,"Policiers"]
[null,"Catégorie d'emplois","1. PERSONNEL D'ENCADREMENT",null,null,null,"2. PERSONNEL PROFESSIONNEL",null,null,null,"3. PERSONNEL TECHNIQUE ET DE BUREAU",null,null,null,"1. OFFICIER",null,null,null,"2. SOUS-OFFICIER",null,null,null,"3. AGENT"]
[null,null,"NOMBRE D’EMPLOYÉS RÉGULIERS",null," (%)*",null,"NOMBRE D’EMPLOYÉS RÉGULIERS",null," (%)*",null,"NOMBRE D’EMPLOYÉS RÉGULIERS",null," (%)*",null,"NOMBRE D’EMPLOYÉS RÉGULIERS",null," (%)*",null,"NOMBRE D’EMPLOYÉS RÉGULIERS",null," (%)*",null,"NOMBRE D’EMPLOYÉS RÉGULIERS",null," (%)*"]
[null,"Sexe","Femme","Homme","Femme","Homme","Femme","Homme","Femme","Homme","Femme","Homme","Femme","Homme","Femme","Homme","Femme","Homme","Femme","Homme","Femme","Homme","Femme","Homme","Femme","Homme"]
["Autochtone"]
["Non",null,11,11,0.91666666666666696,0.84615384615384603,82,70,0.96470588235294097,0.95890410958904104,476,113,0.95582329317269099,0.89682539682539708,18,282,0.94736842105263208,0.78991596638655504,205,1129,0.75925925925925908,0.73742651861528408,579,1589,0.65497737556561098,0.62362637362637408]
["Oui",null,"N.A.","N.A.","N.A.","N.A.","N.A.","N.A.","N.A.","N.A.",4,1,8.0321285140562207E-3,7.9365079365079395E-3,"N.A.",5,"N.A.",1.4005602240896401E-2,4,18,1.4814814814814802E-2,1.1757021554539501E-2,7,32,7.9185520361991016E-3,1.25588697017268E-2]
["N.A.",null,1,2,8.3333333333333301E-2,0.15384615384615402,3,3,3.5294117647058802E-2,4.1095890410958902E-2,18,12,3.6144578313253004E-2,9.5238095238095191E-2,1,70,5.2631578947368404E-2,0.19607843137254899,61,384,0.225925925925926,0.25081645983017603,298,927,0.33710407239819001,0.3638147566719]
["Total Sûreté",null,12,13,1,1,85,73,1,1,498,126,1,1,19,357,1,1,270,1531,1,1,884,2548,1,1]
[]
["* TAUX PAR RAPPORT À L’EFFECTIF RÉGULIER TOTAL DANS LA CATÉGORIE D'EMPLOI.  \nNote 1: L’effectif en place considère tout employé ayant un lien d’emploi et dont le statut d’affectation peut être l’un des suivants : actif, préretraite, congé de maternité, congé sans salaire, congé avec salaire, assurance-salaire, accident de travail ou retrait préventif.  Note 2: La catégorie d’emploi est celle reliée au poste occupé par l’employé. Les prêts ne sont pas considérés.  Note 3: La catégorie d’emploi « Officier » comprend les catégories d’emploi suivantes : directeur général, directeur général adjoint, inspecteur-chef, inspecteur, capitaine et lieutenant.  N.B. Les informations relevant du PAÉE sont demandées aux employés sur une base volontaire.   ***L’intégrité des données est tributaire des informations qui sont alimentées dans nos systèmes RH.*** "]

{"sheet":"2013 | Autochtone - Tx","index":4,"n_rows":13,"n_cols":9,"rows_kept":13,"cut":false,"hidden":false,"merged":[[12,0,12,8],[0,0,0,8]]}
["TAUX DE REPRÉSENTATIVITÉ DES MEMBRES DES GROUPES CIBLES AU SEIN DE L'EFFECTIF RÉGULIER \nGroupe cible: AUTOCHTONE \nEn date du : '2013-04-01' \nDate d'exécution du rapport: 2018-06-18 09:18:17"]
[]
[]
[null,"Civils",null,null,null,"Policiers"]
[null,"NOMBRE D’EMPLOYÉS RÉGULIERS",null,"TAUX PAR RAPPORT À L’EFFECTIF RÉGULIER TOTAL (%)",null,"NOMBRE D’EMPLOYÉS RÉGULIERS",null,"TAUX PAR RAPPORT À L’EFFECTIF RÉGULIER TOTAL (%)"]
[null,"Femme","Homme","Femme","Homme","Femme","Homme","Femme","Homme"]
["Autochtone"]
["Non",954,357,0.94268774703557301,0.90839694656488501,878,3197,0.70692431561996805,0.70402994935036289]
["Oui",8,2,7.9051383399209498E-3,5.0890585241730301E-3,11,55,8.8566827697262509E-3,1.2111869632239602E-2]
["N.A.",50,34,4.9407114624505907E-2,8.65139949109415E-2,353,1289,0.284219001610306,0.28385818101739702]
["Total Sûreté",1012,393,1,1,1242,4541,1,1]
[]
["Note 1: L’effectif en place considère tout employé ayant un lien d’emploi et dont le statut d’affectation peut être l’un des suivants : actif, préretraite, congé de maternité, congé sans salaire, congé avec salaire, assurance-salaire, accident de travail ou retrait préventif.  \nNote 2: La catégorie d’emploi est celle reliée au poste occupé par l’employé. Les prêts ne sont pas considérés.  Note 3: Le corps d'emploi supérieur 825, soit le grade de Directeur général est considéré dans la catégorie \"Policiers\".   N.B. Les informations relevant du PAÉE sont demandées aux employés sur une base volontaire.   ***L’intégrité des données est tributaire des informations qui sont alimentées dans nos systèmes RH.***"]

{"sheet":"2013 |TxEmplois","index":5,"n_rows":14,"n_cols":30,"rows_kept":14,"cut":false,"hidden":false,"merged":[[0,0,0,25],[0,26,0,29],[13,0,13,29]]}
["TAUX DE REPRÉSENTATIVITÉ DES MEMBRES DES GROUPES CIBLES AU SEIN DE L'EFFECTIF RÉGULIER PAR CATÉGORIE D'EMPLOIS \nGroupe cible: AUTOCHTONE \nEn date du : '2017-04-01' \nDate d'exécution du rapport: 2018-06-18 09:25:36"]
[]
[]
[null,"Type effectif","Civils",null,null,null,null,null,null,null,null,null,null,null,null,null,null,null,"Policiers"]
[null,"Catégorie d'emplois","1. PERSONNEL D'ENCADREMENT",null,null,null,"2. PERSONNEL PROFESSIONNEL",null,null,null,"3. PERSONNEL TECHNIQUE ET DE BUREAU",null,null,null,"4. PERSONNEL OUVRIER",null,null,null,"1. OFFICIER",null,null,null,"2. SOUS-OFFICIER",null,null,null,"3. AGENT"]
[null,null,"NOMBRE D’EMPLOYÉS RÉGULIERS",null," (%)*",null,"NOMBRE D’EMPLOYÉS RÉGULIERS",null," (%)*",null,"NOMBRE D’EMPLOYÉS RÉGULIERS",null," (%)*",null,"NOMBRE D’EMPLOYÉS RÉGULIERS",null," (%)*",null,"NOMBRE D’EMPLOYÉS RÉGULIERS",null," (%)*",null,"NOMBRE D’EMPLOYÉS RÉGULIERS",null," (%)*",null,"NOMBRE D’EMPLOYÉS RÉGULIERS",null," (%)*"]
[null,"Sexe","Femme","Homme","Femme","Homme","Femme","Homme","Femme","Homme","Femme","Homme","Femme","Homme","Femme","Homme","Femme","Homme","Femme","Homme","Femme","Homme","Femme","Homme","Femme","Homme","Femme","Homme","Femme","Homme"]
["Autochtone"]
["Non",null,18,23,0.94736842105263208,0.88461538461538514,160,117,0.96385542168674698,0.95121951219512202,775,198,0.93825665859564211,0.891891891891892,1,19,1,0.86363636363636409,19,302,0.90476190476190499,0.83425414364640904,229,1204,0.76333333333333298,0.76202531645569604,630,1691,0.68403908794788304,0.65063485956137002]
["Oui",null,"N.A.","N.A.","N.A.","N.A.","N.A.","N.A.","N.A.","N.A.",8,2,9.685230024213079E-3,9.0090090090090107E-3,"N.A.","N.A.","N.A.","N.A.","N.A.",4,"N.A.",1.1049723756906101E-2,4,19,1.3333333333333301E-2,1.2025316455696201E-2,7,32,7.6004343105320303E-3,1.2312427856868001E-2]
["N.A.",null,1,3,5.2631578947368404E-2,0.11538461538461499,6,6,3.6144578313253004E-2,4.8780487804878002E-2,43,22,5.2058111380145294E-2,9.90990990990991E-2,"N.A.",3,"N.A.",0.13636363636363602,2,56,9.5238095238095191E-2,0.15469613259668502,67,357,0.223333333333333,0.22594936708860802,284,876,0.30836047774158498,0.337052712581762]
["Total Sûreté",null,19,26,1,1,166,123,1,1,826,222,1,1,1,22,1,1,21,362,1,1,300,1580,1,1,921,2599,1,1]
[]
["* TAUX PAR RAPPORT À L’EFFECTIF RÉGULIER TOTAL DANS LA CATÉGORIE D'EMPLOI.  \nNote 1: L’effectif en place considère tout employé ayant un lien d’emploi et dont le statut d’affectation peut être l’un des suivants : actif, préretraite, congé de maternité, congé sans salaire, congé avec salaire, assurance-salaire, accident de travail ou retrait préventif.  Note 2: La catégorie d’emploi est celle reliée au poste occupé par l’employé. Les prêts ne sont pas considérés.  Note 3: La catégorie d’emploi « Officier » comprend les catégories d’emploi suivantes : directeur général, directeur général adjoint, inspecteur-chef, inspecteur, capitaine et lieutenant.  N.B. Les informations relevant du PAÉE sont demandées aux employés sur une base volontaire.   ***L’intégrité des données est tributaire des informations qui sont alimentées dans nos systèmes RH.*** "]

{"sheet":"2014 | Autochtone - Tx","index":6,"n_rows":13,"n_cols":9,"rows_kept":13,"cut":false,"hidden":false,"merged":[[12,0,12,8],[0,0,0,8]]}
["TAUX DE REPRÉSENTATIVITÉ DES MEMBRES DES GROUPES CIBLES AU SEIN DE L'EFFECTIF RÉGULIER ccccc\nGroupe cible: AUTOCHTONE\nEn date du : '2014-04-01' \nDate d'exécution du rapport: 2018-06-18 09:20:47"]
[]
[]
[null,"Civils",null,null,null,"Policiers"]
[null,"NOMBRE D’EMPLOYÉS RÉGULIERS",null,"TAUX PAR RAPPORT À L’EFFECTIF RÉGULIER TOTAL (%)",null,"NOMBRE D’EMPLOYÉS RÉGULIERS",null,"TAUX PAR RAPPORT À L’EFFECTIF RÉGULIER TOTAL (%)"]
[null,"Femme","Homme","Femme","Homme","Femme","Homme","Femme","Homme"]
["Autochtone"]
["Non",1124,439,0.94932432432432401,0.92033542976939198,887,3203,0.71130713712910998,0.71383998217071498]
["Oui",9,2,7.6013513513513509E-3,4.1928721174004195E-3,11,54,8.8211708099438704E-3,1.2034767104969901E-2]
["N.A.",51,36,4.3074324324324301E-2,7.5471698113207503E-2,349,1230,0.27987169206094598,0.27412525072431498]
["Total Sûreté",1184,477,1,1,1247,4487,1,1]
[]
["Note 1: L’effectif en place considère tout employé ayant un lien d’emploi et dont le statut d’affectation peut être l’un des suivants : actif, préretraite, congé de maternité, congé sans salaire, congé avec salaire, assurance-salaire, accident de travail ou retrait préventif.  \nNote 2: La catégorie d’emploi est celle reliée au poste occupé par l’employé. Les prêts ne sont pas considérés.  Note 3: Le corps d'emploi supérieur 825, soit le grade de Directeur général est considéré dans la catégorie \"Policiers\".   N.B. Les informations relevant du PAÉE sont demandées aux employés sur une base volontaire.   ***L’intégrité des données est tributaire des informations qui sont alimentées dans nos systèmes RH.***"]

{"sheet":"2014 |TxEmplois","index":7,"n_rows":14,"n_cols":30,"rows_kept":14,"cut":false,"hidden":false,"merged":[[0,0,0,29],[13,0,13,29]]}
["TAUX DE REPRÉSENTATIVITÉ DES MEMBRES DES GROUPES CIBLES AU SEIN DE L'EFFECTIF RÉGULIER PAR CATÉGORIE D'EMPLOIS \nGroupe cible: AUTOCHTONE \nEn date du : '2017-04-01' \nDate d'exécution du rapport: 2018-06-18 09:25:36"]
[]
[]
[null,"Type effectif","Civils",null,null,null,null,null,null,null,null,null,null,null,null,null,null,null,"Policiers"]
[null,"Catégorie d'emplois","1. PERSONNEL D'ENCADREMENT",null,null,null,"2. PERSONNEL PROFESSIONNEL",null,null,null,"3. PERSONNEL TECHNIQUE ET DE BUREAU",null,null,null,"4. PERSONNEL OUVRIER",null,null,null,"1. OFFICIER",null,null,null,"2. SOUS-OFFICIER",null,null,null,"3. AGENT"]
[null,null,"NOMBRE D’EMPLOYÉS RÉGULIERS",null," (%)*",null,"NOMBRE D’EMPLOYÉS RÉGULIERS",null," (%)*",null,"NOMBRE D’EMPLOYÉS RÉGULIERS",null," (%)*",null,"NOMBRE D’EMPLOYÉS RÉGULIERS",null," (%)*",null,"NOMBRE D’EMPLOYÉS RÉGULIERS",null," (%)*",null,"NOMBRE D’EMPLOYÉS RÉGULIERS",null," (%)*",null,"NOMBRE D’EMPLOYÉS RÉGULIERS",null," (%)*"]
[null,"Sexe","Femme","Homme","Femme","Homme","Femme","Homme","Femme","Homme","Femme","Homme","Femme","Homme","Femme","Homme","Femme","Homme","Femme","Homme","Femme","Homme","Femme","Homme","Femme","Homme","Femme","Homme","Femme","Homme"]
["Autochtone"]
["Non",null,19,24,0.95000000000000007,1,187,135,0.963917525773196,0.9712230215827341,910,240,0.94594594594594594,0.88888888888888906,8,40,1,0.90909090909090906,19,316,0.86363636363636409,0.85175202156334207,259,1225,0.75730994152046804,0.76850690087829399,609,1662,0.68969422423556104,0.65900079302141201]
["Oui",null,"N.A.","N.A.","N.A.","N.A.","N.A.","N.A.","N.A.","N.A.",9,2,9.3555093555093612E-3,7.4074074074074103E-3,"N.A.","N.A.","N.A.","N.A.","N.A.",4,"N.A.",1.07816711590296E-2,4,21,1.1695906432748501E-2,1.3174404015056502E-2,7,29,7.9275198187995482E-3,1.1498810467882601E-2]
["N.A.",null,1,"N.A.",0.05,"N.A.",7,4,3.60824742268041E-2,2.8776978417266199E-2,43,28,4.4698544698544701E-2,0.10370370370370401,"N.A.",4,"N.A.",9.0909090909090898E-2,3,51,0.13636363636363602,0.13746630727762801,79,348,0.230994152046784,0.21831869510665003,267,831,0.30237825594564005,0.32950039651070601]
["Total Sûreté",null,20,24,1,1,194,139,1,1,962,270,1,1,8,44,1,1,22,371,1,1,342,1594,1,1,883,2522,1,1]
[]
["* TAUX PAR RAPPORT À L’EFFECTIF RÉGULIER TOTAL DANS LA CATÉGORIE D'EMPLOI.  \nNote 1: L’effectif en place considère tout employé ayant un lien d’emploi et dont le statut d’affectation peut être l’un des suivants : actif, préretraite, congé de maternité, congé sans salaire, congé avec salaire, assurance-salaire, accident de travail ou retrait préventif.  Note 2: La catégorie d’emploi est celle reliée au poste occupé par l’employé. Les prêts ne sont pas considérés.  Note 3: La catégorie d’emploi « Officier » comprend les catégories d’emploi suivantes : directeur général, directeur général adjoint, inspecteur-chef, inspecteur, capitaine et lieutenant.  N.B. Les informations relevant du PAÉE sont demandées aux employés sur une base volontaire.   ***L’intégrité des données est tributaire des informations qui sont alimentées dans nos systèmes RH.*** "]

{"sheet":"2015 | Autochtone - Tx","index":8,"n_rows":13,"n_cols":9,"rows_kept":13,"cut":false,"hidden":false,"merged":[[12,0,12,8],[0,0,0,8]]}
["TAUX DE REPRÉSENTATIVITÉ DES MEMBRES DES GROUPES CIBLES AU SEIN DE L'EFFECTIF RÉGULIER ccccc\nGroupe cible: AUTOCHTONE\nEn date du : '2014-04-01' \nDate d'exécution du rapport: 2018-06-18 09:20:47"]
[]
[]
[null,"Civils",null,null,null,"Policiers"]
[null,"NOMBRE D’EMPLOYÉS RÉGULIERS",null,"TAUX PAR RAPPORT À L’EFFECTIF RÉGULIER TOTAL (%)",null,"NOMBRE D’EMPLOYÉS RÉGULIERS",null,"TAUX PAR RAPPORT À L’EFFECTIF RÉGULIER TOTAL (%)"]
[null,"Femme","Homme","Femme","Homme","Femme","Homme","Femme","Homme"]
["Autochtone"]
["Non",1077,426,0.95057369814651405,0.92207792207792194,898,3162,0.71667996807661605,0.71879972721073004]
["Oui",9,2,7.943512797881731E-3,4.3290043290043307E-3,11,55,8.7789305666400603E-3,1.2502841554898799E-2]
["N.A.",47,34,4.1482789055604603E-2,7.3593073593073599E-2,344,1182,0.27454110135674398,0.26869743123437101]
["Total Sûreté",1133,462,1,1,1253,4399,1,1]
[]
["Note 1: L’effectif en place considère tout employé ayant un lien d’emploi et dont le statut d’affectation peut être l’un des suivants : actif, préretraite, congé de maternité, congé sans salaire, congé avec salaire, assurance-salaire, accident de travail ou retrait préventif.  \nNote 2: La catégorie d’emploi est celle reliée au poste occupé par l’employé. Les prêts ne sont pas considérés.  Note 3: Le corps d'emploi supérieur 825, soit le grade de Directeur général est considéré dans la catégorie \"Policiers\".   N.B. Les informations relevant du PAÉE sont demandées aux employés sur une base volontaire.   ***L’intégrité des données est tributaire des informations qui sont alimentées dans nos systèmes RH.***"]

{"sheet":"2015 |TxEmplois","index":9,"n_rows":14,"n_cols":30,"rows_kept":14,"cut":false,"hidden":false,"merged":[[0,0,0,29],[13,0,13,29]]}
["TAUX DE REPRÉSENTATIVITÉ DES MEMBRES DES GROUPES CIBLES AU SEIN DE L'EFFECTIF RÉGULIER PAR CATÉGORIE D'EMPLOIS \nGroupe cible: AUTOCHTONE \nEn date du : '2017-04-01' \nDate d'exécution du rapport: 2018-06-18 09:25:36"]
[]
[]
[null,"Type effectif","Civils",null,null,null,null,null,null,null,null,null,null,null,null,null,null,null,"Policiers"]
[null,"Catégorie d'emplois","1. PERSONNEL D'ENCADREMENT",null,null,null,"2. PERSONNEL PROFESSIONNEL",null,null,null,"3. PERSONNEL TECHNIQUE ET DE BUREAU",null,null,null,"4. PERSONNEL OUVRIER",null,null,null,"1. OFFICIER",null,null,null,"2. SOUS-OFFICIER",null,null,null,"3. AGENT"]
[null,null,"NOMBRE D’EMPLOYÉS RÉGULIERS",null," (%)*",null,"NOMBRE D’EMPLOYÉS RÉGULIERS",null," (%)*",null,"NOMBRE D’EMPLOYÉS RÉGULIERS",null," (%)*",null,"NOMBRE D’EMPLOYÉS RÉGULIERS",null," (%)*",null,"NOMBRE D’EMPLOYÉS RÉGULIERS",null," (%)*",null,"NOMBRE D’EMPLOYÉS RÉGULIERS",null," (%)*",null,"NOMBRE D’EMPLOYÉS RÉGULIERS",null," (%)*"]
[null,"Sexe","Femme","Homme","Femme","Homme","Femme","Homme","Femme","Homme","Femme","Homme","Femme","Homme","Femme","Homme","Femme","Homme","Femme","Homme","Femme","Homme","Femme","Homme","Femme","Homme","Femme","Homme","Femme","Homme"]
["Autochtone"]
["Non",null,19,23,0.90476190476190499,1,199,133,0.96601941747572806,0.97794117647058798,851,230,0.94766146993318512,0.88803088803088792,8,40,1,0.90909090909090906,21,283,0.875,0.85498489425981905,273,1226,0.75833333333333297,0.77398989898989912,604,1653,0.69505178365937903,0.66545893719806803]
["Oui",null,"N.A.","N.A.","N.A.","N.A.","N.A.","N.A.","N.A.","N.A.",9,2,1.0022271714921999E-2,7.7220077220077205E-3,"N.A.","N.A.","N.A.","N.A.","N.A.",4,"N.A.",1.2084592145015101E-2,4,23,1.1111111111111101E-2,1.4520202020202001E-2,7,28,8.0552359033371716E-3,1.12721417069243E-2]
["N.A.",null,2,"N.A.",9.5238095238095191E-2,"N.A.",7,3,3.3980582524271802E-2,2.2058823529411801E-2,38,27,4.2316258351893093E-2,0.104247104247104,"N.A.",4,"N.A.",9.0909090909090898E-2,3,44,0.125,0.132930513595166,83,335,0.23055555555555599,0.21148989898989903,258,803,0.29689298043728402,0.32326892109500799]
["Total Sûreté",null,21,23,1,1,206,136,1,1,898,259,1,1,8,44,1,1,24,331,1,1,360,1584,1,1,869,2484,1,1]
[]
["* TAUX PAR RAPPORT À L’EFFECTIF RÉGULIER TOTAL DANS LA CATÉGORIE D'EMPLOI.  \nNote 1: L’effectif en place considère tout employé ayant un lien d’emploi et dont le statut d’affectation peut être l’un des suivants : actif, préretraite, congé de maternité, congé sans salaire, congé avec salaire, assurance-salaire, accident de travail ou retrait préventif.  Note 2: La catégorie d’emploi est celle reliée au poste occupé par l’employé. Les prêts ne sont pas considérés.  Note 3: La catégorie d’emploi « Officier » comprend les catégories d’emploi suivantes : directeur général, directeur général adjoint, inspecteur-chef, inspecteur, capitaine et lieutenant.  N.B. Les informations relevant du PAÉE sont demandées aux employés sur une base volontaire.   ***L’intégrité des données est tributaire des informations qui sont alimentées dans nos systèmes RH.*** "]

{"sheet":"2016 | Autochtone - Tx","index":10,"n_rows":13,"n_cols":9,"rows_kept":13,"cut":false,"hidden":false,"merged":[[12,0,12,8],[0,0,0,8]]}
["TAUX DE REPRÉSENTATIVITÉ DES MEMBRES DES GROUPES CIBLES AU SEIN DE L'EFFECTIF RÉGULIER \nGroupe cible: AUTOCHTONE \nEn date du : '2016-04-01' \nDate d'exécution du rapport: 2018-06-18 09:23:21"]
[]
[]
[null,"Civils",null,null,null,"Policiers"]
[null,"NOMBRE D’EMPLOYÉS RÉGULIERS",null,"TAUX PAR RAPPORT À L’EFFECTIF RÉGULIER TOTAL (%)",null,"NOMBRE D’EMPLOYÉS RÉGULIERS",null,"TAUX PAR RAPPORT À L’EFFECTIF RÉGULIER TOTAL (%)"]
[null,"Femme","Homme","Femme","Homme","Femme","Homme","Femme","Homme"]
["Autochtone"]
["Non",1059,424,0.94807520143240798,0.92576419213973804,928,3125,0.72670321064996102,0.72472170686456405]
["Oui",8,2,7.1620411817367906E-3,4.3668122270742408E-3,12,54,9.3970242756460497E-3,1.25231910946197E-2]
["N.A.",50,32,4.4762757385855001E-2,6.9868995633187797E-2,337,1133,0.26389976507439294,0.26275510204081604]
["Total Sûreté",1117,458,1,1,1277,4312,1,1]
[]
["Note 1: L’effectif en place considère tout employé ayant un lien d’emploi et dont le statut d’affectation peut être l’un des suivants : actif, préretraite, congé de maternité, congé sans salaire, congé avec salaire, assurance-salaire, accident de travail ou retrait préventif.  \nNote 2: La catégorie d’emploi est celle reliée au poste occupé par l’employé. Les prêts ne sont pas considérés.  Note 3: Le corps d'emploi supérieur 825, soit le grade de Directeur général est considéré dans la catégorie \"Policiers\".   N.B. Les informations relevant du PAÉE sont demandées aux employés sur une base volontaire.   ***L’intégrité des données est tributaire des informations qui sont alimentées dans nos systèmes RH.***"]

{"sheet":"2016 |TxEmplois","index":11,"n_rows":14,"n_cols":29,"rows_kept":14,"cut":false,"hidden":false,"merged":[[0,0,0,28],[13,0,13,28]]}
["TAUX DE REPRÉSENTATIVITÉ DES MEMBRES DES GROUPES CIBLES AU SEIN DE L'EFFECTIF RÉGULIER PAR CATÉGORIE D'EMPLOIS \nGroupe cible: AUTOCHTONE \nEn date du : '2017-04-01' \nDate d'exécution du rapport: 2018-06-18 09:25:36"]
[]
[]
[null,"Civils",null,null,null,null,null,null,null,null,null,null,null,null,null,null,null,"Policiers"]
[null,"1. PERSONNEL D'ENCADREMENT",null,null,null,"2. PERSONNEL PROFESSIONNEL",null,null,null,"3. PERSONNEL TECHNIQUE ET DE BUREAU",null,null,null,"4. PERSONNEL OUVRIER",null,null,null,"1. OFFICIER",null,null,null,"2. SOUS-OFFICIER",null,null,null,"3. AGENT"]
[null,"NOMBRE D’EMPLOYÉS RÉGULIERS",null," (%)*",null,"NOMBRE D’EMPLOYÉS RÉGULIERS",null," (%)*",null,"NOMBRE D’EMPLOYÉS RÉGULIERS",null," (%)*",null,"NOMBRE D’EMPLOYÉS RÉGULIERS",null," (%)*",null,"NOMBRE D’EMPLOYÉS RÉGULIERS",null," (%)*",null,"NOMBRE D’EMPLOYÉS RÉGULIERS",null," (%)*",null,"NOMBRE D’EMPLOYÉS RÉGULIERS",null," (%)*"]
[null,"Femme","Homme","Femme","Homme","Femme","Homme","Femme","Homme","Femme","Homme","Femme","Homme","Femme","Homme","Femme","Homme","Femme","Homme","Femme","Homme","Femme","Homme","Femme","Homme","Femme","Homme","Femme","Homme"]
["Autochtone"]
["Non",19,19,0.90476190476190499,1,196,125,0.96078431372549,0.9765625,839,234,0.94588500563697908,0.89655172413793105,5,46,1,0.92,23,253,0.85185185185185197,0.85762711864406804,278,1181,0.761643835616438,0.76988265971316794,627,1691,0.70847457627118593,0.68103101087394302]
["Oui","N.A.","N.A.","N.A.","N.A.","N.A.","N.A.","N.A.","N.A.",8,2,9.0191657271702398E-3,7.6628352490421504E-3,"N.A.","N.A.","N.A.","N.A.","N.A.",4,"N.A.",1.3559322033898299E-2,4,21,1.0958904109589001E-2,1.3689700130378102E-2,8,29,9.0395480225988704E-3,1.1679420056383399E-2]
["N.A.",2,"N.A.",9.5238095238095191E-2,"N.A.",8,3,3.9215686274509803E-2,2.34375E-2,40,25,4.5095828635851196E-2,9.5785440613026795E-2,"N.A.",4,"N.A.",0.08,4,38,0.148148148148148,0.128813559322034,83,332,0.227397260273973,0.21642764015645402,250,763,0.28248587570621503,0.30728956906967397]
["Total Sûreté",21,19,1,1,204,128,1,1,887,261,1,1,5,50,1,1,27,295,1,1,365,1534,1,1,885,2483,1,1]
[]
["* TAUX PAR RAPPORT À L’EFFECTIF RÉGULIER TOTAL DANS LA CATÉGORIE D'EMPLOI.  \nNote 1: L’effectif en place considère tout employé ayant un lien d’emploi et dont le statut d’affectation peut être l’un des suivants : actif, préretraite, congé de maternité, congé sans salaire, congé avec salaire, assurance-salaire, accident de travail ou retrait préventif.  Note 2: La catégorie d’emploi est celle reliée au poste occupé par l’employé. Les prêts ne sont pas considérés.  Note 3: La catégorie d’emploi « Officier » comprend les catégories d’emploi suivantes : directeur général, directeur général adjoint, inspecteur-chef, inspecteur, capitaine et lieutenant.  N.B. Les informations relevant du PAÉE sont demandées aux employés sur une base volontaire.   ***L’intégrité des données est tributaire des informations qui sont alimentées dans nos systèmes RH.*** "]

{"sheet":"2017 | Autochtone - Tx","index":12,"n_rows":13,"n_cols":10,"rows_kept":13,"cut":false,"hidden":false,"merged":[[12,0,12,9],[0,0,0,9]]}
["TAUX DE REPRÉSENTATIVITÉ DES MEMBRES DES GROUPES CIBLES AU SEIN DE L'EFFECTIF RÉGULIER ccccc\nGroupe cible: AUTOCHTONE\nEn date du : '2014-04-01' \nDate d'exécution du rapport: 2018-06-18 09:20:47"]
[]
[]
[null,"Type effectif","Civils",null,null,null,"Policiers"]
[null,null,"NOMBRE D’EMPLOYÉS RÉGULIERS",null,"TAUX PAR RAPPORT À L’EFFECTIF RÉGULIER TOTAL (%)",null,"NOMBRE D’EMPLOYÉS RÉGULIERS",null,"TAUX PAR RAPPORT À L’EFFECTIF RÉGULIER TOTAL (%)"]
[null,"Sexe","Femme","Homme","Femme","Homme","Femme","Homme","Femme","Homme"]
["Autochtone"]
["Non",null,1077,440,0.94308231173379997,0.91858037578288099,937,3083,0.73203125000000002,0.73022264329701603]
["Oui",null,8,2,7.0052539404553407E-3,4.1753653444676396E-3,13,56,1.015625E-2,1.3263855992420701E-2]
["N.A.",null,57,37,4.9912434325744298E-2,7.7244258872651392E-2,330,1083,0.2578125,0.256513500710564]
["Total Sûreté",null,1142,479,1,1,1280,4222,1,1]
[]
["Note 1: L’effectif en place considère tout employé ayant un lien d’emploi et dont le statut d’affectation peut être l’un des suivants : actif, préretraite, congé de maternité, congé sans salaire, congé avec salaire, assurance-salaire, accident de travail ou retrait préventif.  \nNote 2: La catégorie d’emploi est celle reliée au poste occupé par l’employé. Les prêts ne sont pas considérés.  Note 3: Le corps d'emploi supérieur 825, soit le grade de Directeur général est considéré dans la catégorie \"Policiers\".   N.B. Les informations relevant du PAÉE sont demandées aux employés sur une base volontaire.   ***L’intégrité des données est tributaire des informations qui sont alimentées dans nos systèmes RH.***"]

{"sheet":"2017 |TxEmplois","index":13,"n_rows":14,"n_cols":29,"rows_kept":14,"cut":false,"hidden":false,"merged":[[0,0,0,28],[13,0,13,28]]}
["TAUX DE REPRÉSENTATIVITÉ DES MEMBRES DES GROUPES CIBLES AU SEIN DE L'EFFECTIF RÉGULIER PAR CATÉGORIE D'EMPLOIS \nGroupe cible: AUTOCHTONE \nEn date du : '2017-04-01' \nDate d'exécution du rapport: 2018-06-18 09:25:36"]
[]
[]
[null,"Civils",null,null,null,null,null,null,null,null,null,null,null,null,null,null,null,"Policiers"]
[null,"1. PERSONNEL D'ENCADREMENT",null,null,null,"2. PERSONNEL PROFESSIONNEL",null,null,null,"3. PERSONNEL TECHNIQUE ET DE BUREAU",null,null,null,"4. PERSONNEL OUVRIER",null,null,null,"1. OFFICIER",null,null,null,"2. SOUS-OFFICIER",null,null,null,"3. AGENT"]
[null,"NOMBRE D’EMPLOYÉS RÉGULIERS",null," (%)*",null,"NOMBRE D’EMPLOYÉS RÉGULIERS",null," (%)*",null,"NOMBRE D’EMPLOYÉS RÉGULIERS",null," (%)*",null,"NOMBRE D’EMPLOYÉS RÉGULIERS",null," (%)*",null,"NOMBRE D’EMPLOYÉS RÉGULIERS",null," (%)*",null,"NOMBRE D’EMPLOYÉS RÉGULIERS",null," (%)*",null,"NOMBRE D’EMPLOYÉS RÉGULIERS",null," (%)*"]
[null,"Femme","Homme","Femme","Homme","Femme","Homme","Femme","Homme","Femme","Homme","Femme","Homme","Femme","Homme","Femme","Homme","Femme","Homme","Femme","Homme","Femme","Homme","Femme","Homme","Femme","Homme","Femme","Homme"]
["Autochtone"]
["Non",20,19,0.90909090909090906,1,219,131,0.96902654867256599,0.95620437956204407,833,240,0.93700787401574792,0.89552238805970097,5,50,1,0.90909090909090906,24,238,0.85714285714285698,0.87179487179487203,282,1133,0.75603217158176894,0.76142473118279608,631,1712,0.71786120591581293,0.69565217391304301]
["Oui","N.A.","N.A.","N.A.","N.A.","N.A.","N.A.","N.A.","N.A.",8,2,8.9988751406074197E-3,7.4626865671641798E-3,"N.A.","N.A.","N.A.","N.A.","N.A.",3,"N.A.",1.0989010989011E-2,5,21,1.34048257372654E-2,1.4112903225806502E-2,8,32,9.1012514220705307E-3,1.3002844372206401E-2]
["N.A.",2,"N.A.",9.0909090909090898E-2,"N.A.",7,6,3.09734513274336E-2,4.3795620437956199E-2,48,26,5.3993250843644501E-2,9.7014925373134303E-2,"N.A.",5,"N.A.",9.0909090909090898E-2,4,32,0.14285714285714299,0.11721611721611701,86,334,0.230563002680965,0.22446236559139798,240,717,0.27303754266211605,0.29134498171475004]
["Total Sûreté",22,19,1,1,226,137,1,1,889,268,1,1,5,55,1,1,28,273,1,1,373,1488,1,1,879,2461,1,1]
[]
["* TAUX PAR RAPPORT À L’EFFECTIF RÉGULIER TOTAL DANS LA CATÉGORIE D'EMPLOI.  \nNote 1: L’effectif en place considère tout employé ayant un lien d’emploi et dont le statut d’affectation peut être l’un des suivants : actif, préretraite, congé de maternité, congé sans salaire, congé avec salaire, assurance-salaire, accident de travail ou retrait préventif.  Note 2: La catégorie d’emploi est celle reliée au poste occupé par l’employé. Les prêts ne sont pas considérés.  Note 3: La catégorie d’emploi « Officier » comprend les catégories d’emploi suivantes : directeur général, directeur général adjoint, inspecteur-chef, inspecteur, capitaine et lieutenant.  N.B. Les informations relevant du PAÉE sont demandées aux employés sur une base volontaire.   ***L’intégrité des données est tributaire des informations qui sont alimentées dans nos systèmes RH.*** "]

{"sheet":"Macro1","index":14,"n_rows":125,"n_cols":2,"rows_kept":125,"cut":false,"hidden":true,"merged":[]}
["Macro1","Auto_ouvrir"]
[{"$f":"ALIGNMENT(4,FALSE,1,0,FALSE)","v":true},{"$f":"ERROR(2,Recover)","v":true}]
[{"$f":"BORDER(0,1,1,1,1,0,0,1,1,1,1)","v":true},{"$f":"WORKBOOK.SELECT(\"TBL | Autochtone - Tx représent\")","v":true}]
[{"$f":"PATTERNS(1,0,2,TRUE)","v":true},{"$f":"WINDOW.RESTORE()","v":true}]
[{"$f":"FORMAT.FONT(\"Arial\",11,FALSE,FALSE,FALSE,FALSE,1,FALSE,FALSE)","v":true},{"$f":"WINDOW.SIZE(82.5,42.75)","v":true}]
[{"$f":"RETURN()","v":true},{"$f":"WORKBOOK.HIDE(\"Macro1\",TRUE)","v":true}]
[null,{"$f":"EDIT.COLOR(1,0,0,0)","v":true}]
["Macro10",{"$f":"EDIT.COLOR(3,255,0,0)","v":true}]
[{"$f":"ALIGNMENT(2,FALSE,1,0,FALSE)","v":true},{"$f":"EDIT.COLOR(7,82,82,0)","v":true}]
[{"$f":"BORDER(1,1,1,0,0,0,1,1,1,0,0)","v":true},{"$f":"EDIT.COLOR(6,115,115,0)","v":true}]
[{"$f":"PATTERNS(1,0,6,TRUE)","v":true},{"$f":"EDIT.COLOR(4,212,212,212)","v":true}]
[{"$f":"FORMAT.FONT(\"Arial\",11,TRUE,FALSE,FALSE,FALSE,2,FALSE,FALSE)","v":true},{"$f":"EDIT.COLOR(5,247,247,231)","v":true}]
[{"$f":"RETURN()","v":true},{"$f":"EDIT.COLOR(2,255,255,255)","v":true}]
[null,{"$f":"RUN(\"Macro13\")","v":{"$error":"#N/A"}}]
["Macro11",{"$f":"DELETE.NAME(\"Auto_ouvrir\")","v":true}]
[{"$f":"ALIGNMENT(2,FALSE,1,0,FALSE)","v":true},{"$f":"WORKBOOK.SELECT(\"TBL | Autochtone - Tx représent\")","v":true}]
[{"$f":"BORDER(1,1,1,0,0,0,1,1,1,0,0)","v":true},{"$f":"SELECT(\"L3:L65536\")","v":true}]
[{"$f":"PATTERNS(1,0,2,TRUE)","v":true},{"$f":"COLUMN.WIDTH(,,,3)","v":true}]
[{"$f":"FORMAT.FONT(\"Arial\",11,TRUE,FALSE,FALSE,FALSE,2,FALSE,FALSE)","v":true},{"$f":"ROW.HEIGHT(,,,3)","v":true}]
[{"$f":"RETURN()","v":true},{"$f":"SELECT(\"L1C1\")","v":true}]
[null,{"$f":"WINDOW.MAXIMIZE()","v":true}]
["Macro12",{"$f":"RETURN()","v":true}]
[{"$f":"ALIGNMENT(4,FALSE,1,0,FALSE)","v":true}]
[{"$f":"BORDER(0,1,1,1,1,0,0,1,1,1,1)","v":true}]
[{"$f":"PATTERNS(1,0,6,TRUE)","v":true}]
[{"$f":"FORMAT.FONT(\"Arial\",11,TRUE,FALSE,FALSE,FALSE,2,FALSE,FALSE)","v":true}]
[{"$f":"RETURN()","v":true}]
[]
["Macro13"]
[{"$f":"WORKBOOK.SELECT(\"TBL | Autochtone - Tx représent\")","v":true}]
[{"$f":"SELECT(\"L9C3:L10C3\")","v":true}]
[{"$f":"RUN(\"Macro1\")","v":{"$error":"#N/A"}}]
[{"$f":"SELECT(\"L9C4:L10C4\")","v":true}]
[{"$f":"RUN(\"Macro2\")","v":{"$error":"#N/A"}}]
[{"$f":"SELECT(\"L10C3\")","v":true}]
[{"$f":"FORMAT.NUMBER(\"#####################################0\")","v":true}]
[{"$f":"SELECT(\"L10C4\")","v":true}]
[{"$f":"FORMAT.NUMBER(\"#####################################0,0%\")","v":true}]
[{"$f":"SELECT(\"L9C3:L10C3\")","v":true}]
[{"$f":"FORMAT.NUMBER(\"#####################################0\")","v":true}]
[{"$f":"SELECT(\"L9C4:L10C4\")","v":true}]
[{"$f":"FORMAT.NUMBER(\"#####################################0,0%\")","v":true}]
[{"$f":"SELECT(\"L5C1:L7C1\")","v":true}]
[{"$f":"RUN(\"Macro3\")","v":{"$error":"#N/A"}}]
[{"$f":"SELECT(\"L8C2:L8C4;L8C2:L10C2\")","v":true}]
[{"$f":"RUN(\"Macro4\")","v":{"$error":"#N/A"}}]
[{"$f":"SELECT(\"L5C2;L5C3:L5C4\")","v":true}]
[{"$f":"RUN(\"Macro5\")","v":{"$error":"#N/A"}}]
[{"$f":"SELECT(\"L6C2;L6C3\")","v":true}]
[{"$f":"RUN(\"Macro6\")","v":{"$error":"#N/A"}}]
[{"$f":"SELECT(\"L7C2;L7C3;L7C4;L3C1\")","v":true}]
[{"$f":"RUN(\"Macro7\")","v":{"$error":"#N/A"}}]
[{"$f":"SELECT(\"L8C1;L9C1\")","v":true}]
[{"$f":"RUN(\"Macro8\")","v":{"$error":"#N/A"}}]
[{"$f":"SELECT(\"L6C4\")","v":true}]
[{"$f":"RUN(\"Macro9\")","v":{"$error":"#N/A"}}]
[{"$f":"SELECT(\"L10C1\")","v":true}]
[{"$f":"RUN(\"Macro10\")","v":{"$error":"#N/A"}}]
[{"$f":"SELECT(\"L3C3;L3C2\")","v":true}]
[{"$f":"RUN(\"Macro11\")","v":{"$error":"#N/A"}}]
[{"$f":"SELECT(\"L9C2:L10C2;L5C4\")","v":true}]
[{"$f":"CLEAR(3)","v":true}]
[{"$f":"SELECT(\"L10C3:L10C4\")","v":true}]
[{"$f":"RUN(\"Macro12\")","v":{"$error":"#N/A"}}]
[{"$f":"RETURN()","v":true}]
[]
["Macro2"]
[{"$f":"ALIGNMENT(4,FALSE,1,0,FALSE)","v":true}]
[{"$f":"BORDER(0,1,1,1,1,0,0,1,1,1,1)","v":true}]
[{"$f":"PATTERNS(1,0,5,TRUE)","v":true}]
[{"$f":"FORMAT.FONT(\"Arial\",11,FALSE,FALSE,FALSE,FALSE,7,FALSE,FALSE)","v":true}]
[{"$f":"RETURN()","v":true}]
[]
["Macro3"]
[{"$f":"ALIGNMENT(4,FALSE,1,0,FALSE)","v":true}]
[{"$f":"BORDER(1,0,0,0,0,0,1,0,0,0,0)","v":true}]
[{"$f":"PATTERNS(1,0,5,TRUE)","v":true}]
[{"$f":"FORMAT.FONT(\"\",1,FALSE,FALSE,FALSE,FALSE,1,FALSE,FALSE)","v":true}]
[{"$f":"RETURN()","v":true}]
[]
["Macro4"]
[{"$f":"ALIGNMENT(4,FALSE,1,0,FALSE)","v":true}]
[{"$f":"BORDER(0,1,1,1,1,0,0,1,1,1,1)","v":true}]
[{"$f":"PATTERNS(1,0,5,TRUE)","v":true}]
[{"$f":"FORMAT.FONT(\"\",1,FALSE,FALSE,FALSE,FALSE,1,FALSE,FALSE)","v":true}]
[{"$f":"RETURN()","v":true}]
[]
["Macro5"]
[{"$f":"ALIGNMENT(3,TRUE,1,0,FALSE)","v":true}]
[{"$f":"BORDER(1,1,1,0,0,0,1,1,1,0,0)","v":true}]
[{"$f":"PATTERNS(1,0,6,TRUE)","v":true}]
[{"$f":"FORMAT.FONT(\"Arial\",11,TRUE,FALSE,FALSE,FALSE,2,FALSE,FALSE)","v":true}]
[{"$f":"RETURN()","v":true}]
[]
["Macro6"]
[{"$f":"ALIGNMENT(3,FALSE,1,0,FALSE)","v":true}]
[{"$f":"BORDER(1,1,1,0,0,0,1,1,1,0,0)","v":true}]
[{"$f":"PATTERNS(1,0,2,TRUE)","v":true}]
[{"$f":"FORMAT.FONT(\"Arial\",11,TRUE,FALSE,FALSE,FALSE,7,FALSE,FALSE)","v":true}]
[{"$f":"RETURN()","v":true}]
[]
["Macro7"]
[{"$f":"ALIGNMENT(2,FALSE,1,0,FALSE)","v":true}]
[{"$f":"BORDER(1,1,1,0,0,0,1,1,1,0,0)","v":true}]
[{"$f":"PATTERNS(1,0,5,TRUE)","v":true}]
[{"$f":"FORMAT.FONT(\"Arial\",11,FALSE,FALSE,FALSE,FALSE,1,FALSE,FALSE)","v":true}]
[{"$f":"RETURN()","v":true}]
[]
["Macro8"]
[{"$f":"ALIGNMENT(2,TRUE,1,0,FALSE)","v":true}]
[{"$f":"BORDER(1,1,1,0,0,0,1,1,1,0,0)","v":true}]
[{"$f":"PATTERNS(1,0,5,TRUE)","v":true}]
[{"$f":"FORMAT.FONT(\"Arial\",11,TRUE,FALSE,FALSE,FALSE,7,FALSE,FALSE)","v":true}]
[{"$f":"RETURN()","v":true}]
[]
["Macro9"]
[{"$f":"ALIGNMENT(3,FALSE,1,0,FALSE)","v":true}]
[{"$f":"BORDER(1,1,1,0,0,0,1,1,1,0,0)","v":true}]
[{"$f":"PATTERNS(1,0,5,TRUE)","v":true}]
[{"$f":"FORMAT.FONT(\"Arial\",11,TRUE,FALSE,FALSE,FALSE,7,FALSE,FALSE)","v":true}]
[{"$f":"RETURN()","v":true}]
[]
["Recover"]
[{"$f":"GOTO(OFFSET(LAST.ERROR(),1,0))","v":false}]
[{"$f":"RETURN()","v":true}]